bitfinex-derivatives/quotes_BTCF0:USTF0_20240913
["timestamp","ask_amount","ask_price","bid_price","bid_amount"]
[1726211113410,0.3608,57859.0,57853.0,0.08642]
[1726211113411,0.20642,57854.0,57853.0,0.08642]
[1726211113602,0.086421,57853.0,57852.0,0.048]
[1726211114003,0.086424,57851.0,57850.0,0.3608]
[1726211114204,0.206424,57851.0,57850.0,0.3608]
[1726211116117,0.298424,57851.0,57850.0,0.001]
[1726211116505,0.307424,57851.0,57850.0,0.002]
[1726211119914,0.107424,57851.0,57850.0,0.002]
[1726211120512,0.107424,57851.0,57850.0,0.088426]
[1726211123415,0.021,57851.0,57850.0,0.088426]
[1726211126216,0.107424,57851.0,57850.0,0.088426]
[1726211139523,0.107424,57851.0,57850.0,0.002]
[1726211139732,0.193848,57851.0,57850.0,0.002]
[1726211140324,0.193848,57851.0,57850.0,1.142]
[1726211140629,0.193848,57851.0,57850.0,1.228426]
[1726211143829,0.193848,57851.0,57850.0,0.088426]
[1726211145231,0.193848,57851.0,57850.0,0.174747]
[1726211148831,0.193848,57851.0,57850.0,0.088321]
[1726211149033,0.193848,57851.0,57850.0,0.002]
[1726211152925,0.193848,57851.0,57850.0,0.07115183]
[1726211157329,0.193848,57851.0,57850.0,0.002]
[1726211160842,0.193848,57851.0,57850.0,0.088426]
[1726211161028,0.107424,57851.0,57850.0,0.174747]
[1726211161231,0.107424,57851.0,57850.0,0.28799659]
[1726211162439,0.107424,57851.0,57850.0,0.28812772]
[1726211163042,0.107424,57851.0,57850.0,0.28812773]
[1726211164144,0.03186215,57858.0,57850.0,0.28812773]
[1726211164145,0.3695,57864.0,57850.0,1.32023559]
[1726211164336,0.008,57862.0,57858.0,0.12]
[1726211164534,0.3608,57864.0,57863.0,0.086406]
[1726211164535,0.447205,57864.0,57863.0,0.086406]
[1726211164834,0.3608,57864.0,57863.0,0.1555163]
[1726211165345,0.3608,57864.0,57863.0,0.086406]
[1726211165545,0.3608,57864.0,57863.0,0.16394913]
[1726211165747,0.3608,57864.0,57863.0,0.09487698]
[1726211167138,0.3628,57864.0,57863.0,0.09587698]
[1726211167741,0.3628,57864.0,57863.0,0.11982684]
[1726211169250,0.008,57868.0,57863.0,1.52120663]
[1726211169545,0.008,57872.0,57871.0,0.086394]
[1726211169762,0.447189,57875.0,57872.0,0.086392]
[1726211169763,0.448429,57875.0,57872.0,0.086392]
[1726211169942,0.447189,57875.0,57872.0,0.086392]
[1726211170133,0.447189,57875.0,57874.0,0.20639]
[1726211170134,0.3608,57875.0,57874.0,0.20639]
[1726211171144,0.3608,57875.0,57874.0,0.08639]
[1726211171343,0.3618,57875.0,57874.0,0.08739]
[1726211171742,0.3678,57875.0,57874.0,0.08839]
[1726211171943,0.3678,57875.0,57874.0,0.002]
[1726211172144,0.454188,57875.0,57874.0,0.002]
[1726211172851,0.454188,57875.0,57874.0,0.08839]
[1726211173249,0.3678,57875.0,57874.0,0.20839]
[1726211173549,0.007,57875.0,57874.0,0.23978619]
[1726211173858,0.007,57875.0,57874.0,1.35814619]
[1726211176055,0.007,57875.0,57874.0,1.23814619]
[1726211176245,0.007,57875.0,57874.0,1.52453619]
[1726211177849,0.006,57875.0,57874.0,1.52353619]
[1726211178053,0.006,57875.0,57874.0,1.52453619]
[1726211179455,0.008,57882.0,57881.0,0.086379]
[1726211179758,0.008,57889.0,57881.0,0.647179]
[1726211180055,0.086367,57890.0,57889.0,0.086367]
[1726211180254,0.086364,57892.0,57890.0,0.086366]
[1726211180558,0.086364,57892.0,57891.0,0.086364]
[1726211181064,0.086359,57895.0,57890.0,0.049]
[1726211181252,0.086359,57895.0,57893.0,0.2]
[1726211181571,0.086354,57898.0,57893.0,0.2]
[1726211181750,0.086354,57898.0,57895.0,0.086358]
[1726211181954,0.086357,57896.0,57895.0,0.086358]
[1726211182148,0.086359,57895.0,57893.0,0.2]
[1726211182353,0.3608,57899.0,57890.0,0.001]
[1726211182354,0.086363,57892.0,57890.0,0.001]
[1726211182660,0.086364,57891.0,57890.0,0.001]
[1726211183464,0.086364,57891.0,57888.0,0.11774701]
[1726211184169,0.086364,57891.0,57890.0,0.001]
[1726211185756,0.086364,57891.0,57889.0,0.086367]
[1726211186263,0.086364,57891.0,57890.0,0.001]
[1726211186663,0.086364,57891.0,57890.0,0.002]
[1726211187760,0.086364,57891.0,57890.0,0.001]
[1726211187957,0.00124,57894.0,57893.0,0.086361]
[1726211188158,0.086357,57896.0,57895.0,0.086358]
[1726211189568,0.086362,57898.0,57895.0,0.001]
[1726211190470,0.086362,57898.0,57895.0,0.002]
[1726211191071,0.086362,57898.0,57895.0,0.03330034]
[1726211191267,0.086362,57898.0,57896.0,0.086365]
[1726211191472,0.3608,57900.0,57897.0,0.086364]
[1726211191677,0.44716,57900.0,57897.0,0.086364]
[1726211192373,0.3608,57900.0,57897.0,0.086364]
[1726211192767,0.086362,57899.0,57897.0,0.087364]
[1726211193074,0.086363,57898.0,57897.0,0.088364]
[1726211193271,0.086363,57898.0,57897.0,0.002]
[1726211196467,0.172726,57898.0,57897.0,0.002]
[1726211196676,0.259089,57898.0,57897.0,0.002]
[1726211199796,0.086376,57889.0,57886.0,0.004]
[1726211199971,0.086376,57889.0,57883.0,0.086385]
[1726211199972,0.086383,57884.0,57883.0,0.086385]
[1726211200172,0.086383,57884.0,57883.0,0.11809903]
[1726211200173,0.647183,57884.0,57883.0,0.11809903]
[1726211200479,0.647183,57884.0,57879.0,0.11725388]
[1726211200480,0.086391,57880.0,57879.0,0.11725388]
[1726211200670,0.286391,57880.0,57879.0,0.086389]
[1726211202990,0.086395,57876.0,57875.0,0.03154261]
[1726211203169,0.086403,57871.0,57866.0,0.004]
[1726211203366,0.086406,57870.0,57864.0,0.06906949]
[1726211203570,0.2864,57873.0,57869.0,0.086406]
[1726211203571,0.086404,57871.0,57869.0,0.086406]
[1726211203783,0.086404,57870.0,57869.0,0.086406]
[1726211204277,0.3608,57871.0,57867.0,0.086409]
[1726211204488,0.2,57868.0,57867.0,0.086409]
[1726211205286,0.286407,57868.0,57867.0,0.086409]
[1726211205784,0.286407,57868.0,57867.0,0.087409]
[1726211205969,0.288407,57868.0,57867.0,0.087409]
[1726211209178,0.002,57868.0,57867.0,0.087409]
[1726211210880,0.202,57868.0,57867.0,0.001]
[1726211211382,0.288407,57868.0,57867.0,0.087409]
[1726211214881,0.374814,57868.0,57867.0,0.001]
[1726211216289,0.381814,57868.0,57867.0,0.002]
[1726211217186,0.388814,57868.0,57867.0,0.002]
[1726211218792,0.475221,57868.0,57867.0,0.002]
[1726211218994,0.086421,57859.0,57858.0,0.090421]
[1726211219191,0.647221,57859.0,57858.0,0.086421]
[1726211219675,0.647221,57859.0,57855.0,0.086427]
[1726211219676,0.086427,57856.0,57855.0,0.086427]
[1726211219880,0.286427,57856.0,57855.0,0.086427]
[1726211221287,0.286427,57856.0,57853.0,0.03047432]
[1726211221288,0.086428,57854.0,57853.0,0.03047432]
[1726211221495,0.447228,57854.0,57853.0,0.03047432]
[1726211221896,0.447228,57854.0,57853.0,0.11690432]
[1726211222378,0.3608,57854.0,57853.0,0.11690432]
[1726211222583,0.3608,57859.0,57853.0,0.31690432]
[1726211222783,0.3608,57859.0,57858.0,0.086422]
[1726211222784,0.447222,57859.0,57858.0,0.086422]
[1726211222983,0.447221,57859.0,57858.0,0.086422]
[1726211223783,0.448221,57859.0,57858.0,0.086422]
[1726211225393,0.447221,57859.0,57858.0,0.086422]
[1726211227602,0.3608,57859.0,57858.0,0.086422]
[1726211229809,0.3608,57859.0,57858.0,0.136022]
[1726211232398,0.3608,57859.0,57858.0,0.18772813]
[1726211232790,0.3608,57859.0,57858.0,0.27415013]
[1726211233499,0.3608,57859.0,57858.0,0.222444]
[1726211233690,0.3608,57859.0,57858.0,1.340964]
[1726211233892,0.3608,57859.0,57858.0,1.32361149]
[1726211234197,0.3608,57859.0,57858.0,0.81303349]
[1726211234401,0.3608,57859.0,57858.0,0.791564]
[1726211234800,0.09041,57866.0,57865.0,0.086412]
[1726211235000,0.08641,57866.0,57865.0,0.086412]
[1726211235395,0.3608,57867.0,57866.0,0.08641]
[1726211236693,0.3648,57867.0,57866.0,0.08641]
[1726211237102,0.3698,57867.0,57866.0,0.13816546]
[1726211237603,0.3628,57867.0,57866.0,0.08641]
[1726211238194,0.3628,57867.0,57866.0,0.15540728]
[1726211239503,0.3628,57867.0,57866.0,0.15542332]
[1726211240709,0.3628,57867.0,57866.0,0.08641]
[1726211241405,0.3628,57867.0,57866.0,0.15542332]
[1726211241805,0.202,57867.0,57866.0,0.15542332]
[1726211242106,0.08641,57866.0,57865.0,0.06901332]
[1726211242308,0.08641,57866.0,57864.0,0.00088]
[1726211242607,0.08641,57866.0,57862.0,0.05176143]
[1726211243112,0.08641,57866.0,57865.0,0.086412]
[1726211244601,0.08741,57866.0,57865.0,0.086412]
[1726211246107,0.08841,57866.0,57865.0,0.086412]
[1726211250106,0.002,57866.0,57865.0,0.086412]
[1726211250310,0.002,57866.0,57865.0,0.09512565]
[1726211252821,0.004,57873.0,57872.0,0.086401]
[1726211253008,0.047,57874.0,57872.0,0.086401]
[1726211253009,0.047,57874.0,57873.0,0.0864]
[1726211254211,0.055,57874.0,57873.0,0.0874]
[1726211255027,0.502198,57874.0,57873.0,0.001]
[1726211255218,1.706956,57874.0,57873.0,0.001]
[1726211255613,1.715956,57874.0,57873.0,0.002]
[1726211256023,1.115956,57874.0,57873.0,0.002]
[1726211257313,1.14711816,57874.0,57873.0,0.002]
[1726211258419,0.62875816,57874.0,57873.0,0.002]
[1726211262219,0.597596,57874.0,57873.0,0.002]
[1726211263915,0.4248,57874.0,57873.0,0.0884]
[1726211264913,0.017,57874.0,57873.0,0.0884]
[1726211265119,0.017,57874.0,57873.0,0.34015014]
[1726211265323,0.017,57874.0,57873.0,0.35742581]
[1726211265522,0.017,57874.0,57873.0,0.2884]
[1726211266117,0.017,57874.0,57873.0,0.40614729]
[1726211266423,0.017,57874.0,57873.0,0.31974729]
[1726211267339,0.017,57874.0,57873.0,0.3887688]
[1726211267726,0.017,57874.0,57873.0,0.31974729]
[1726211267929,0.017,57874.0,57873.0,0.38876874]
[1726211269636,0.017,57874.0,57873.0,0.31974729]
[1726211270029,0.017,57874.0,57873.0,0.3887492]
[1726211271333,0.017,57874.0,57873.0,1.45974729]
[1726211272437,0.017,57874.0,57873.0,1.51148892]
[1726211275929,0.017,57874.0,57873.0,1.31148631]
[1726211276730,0.017,57874.0,57873.0,1.25974729]
[1726211277635,0.103398,57874.0,57873.0,0.11974729]
[1726211280539,0.103398,57874.0,57873.0,0.0884]
[1726211280742,0.664198,57874.0,57873.0,0.002]
[1726211281038,0.750596,57874.0,57873.0,0.002]
[1726211283348,0.664198,57874.0,57873.0,0.002]
[1726211285235,0.750596,57874.0,57873.0,0.002]
[1726211285830,0.389796,57874.0,57873.0,0.002]
[1726211286036,1.111396,57874.0,57873.0,0.002]
[1726211288648,1.024998,57874.0,57873.0,0.002]
[1726211288849,1.111396,57874.0,57873.0,0.002]
[1726211297062,0.7386,57874.0,57873.0,0.0884]
[1726211297658,0.7386,57874.0,57873.0,1.2284]
[1726211298052,0.7386,57874.0,57873.0,1.2588559]
[1726211298267,0.7386,57874.0,57873.0,0.1188559]
[1726211298556,0.3778,57874.0,57873.0,0.1188559]
[1726211302459,0.017,57874.0,57873.0,0.1188559]
[1726211303060,0.017,57874.0,57873.0,0.17059492]
[1726211304357,0.017,57874.0,57873.0,0.1188559]
[1726211304950,0.017,57874.0,57873.0,0.17059492]
[1726211307465,0.017,57874.0,57873.0,0.1188559]
[1726211307667,0.017,57874.0,57873.0,0.17059492]
[1726211308563,0.017,57874.0,57873.0,0.1188559]
[1726211309958,0.017,57874.0,57873.0,0.17064754]
[1726211310265,0.017,57874.0,57873.0,0.29064754]
[1726211310450,0.017,57874.0,57873.0,0.2388559]
[1726211311653,0.017,57874.0,57873.0,0.29064627]
[1726211311859,0.017,57874.0,57873.0,0.2388559]
[1726211312372,0.017,57874.0,57873.0,0.29064627]
[1726211312663,0.017,57874.0,57873.0,0.2388559]
[1726211313772,0.017,57874.0,57873.0,0.2888559]
[1726211314068,0.017,57874.0,57873.0,0.1688559]
[1726211315463,0.103398,57874.0,57873.0,0.1688559]
[1726211315663,0.223398,57874.0,57873.0,0.1688559]
[1726211315961,0.223398,57874.0,57873.0,0.052]
[1726211315962,0.309796,57874.0,57873.0,0.052]
[1726211316270,0.309796,57874.0,57869.0,0.05179037]
[1726211316271,1.25536,57874.0,57869.0,0.05179037]
[1726211316471,1.25536,57874.0,57869.0,0.13819637]
[1726211316472,0.567204,57870.0,57869.0,0.13819637]
[1726211317570,0.567204,57870.0,57869.0,0.086406]
[1726211317966,0.573204,57870.0,57869.0,0.086406]
[1726211318167,0.453204,57870.0,57869.0,0.086406]
[1726211319769,0.458204,57870.0,57869.0,0.086406]
[1726211329070,0.3718,57870.0,57869.0,0.086406]
[1726211329571,0.3718,57870.0,57869.0,1.226406]
[1726211329774,0.3718,57870.0,57869.0,1.27819637]
[1726211330173,0.3718,57870.0,57869.0,0.13819637]
[1726211331792,0.3718,57870.0,57869.0,0.086406]
[1726211331978,0.3718,57870.0,57869.0,0.13819938]
[1726211332469,0.3718,57870.0,57869.0,0.086406]
[1726211338880,0.3718,57870.0,57869.0,0.811212]
[1726211339077,0.15442583,57890.0,57876.0,0.086395]
[1726211339078,0.0489,57881.0,57876.0,0.086395]
[1726211339279,0.0489,57881.0,57872.0,0.0864]
[1726211339280,0.086393,57878.0,57877.0,0.086391]
[1726211339577,0.086393,57878.0,57877.0,0.13819239]
[1726211340174,0.086393,57878.0,57877.0,0.086391]
[1726211340371,0.086393,57878.0,57877.0,0.087391]
[1726211340372,0.094393,57878.0,57877.0,0.087391]
[1726211341883,0.094393,57878.0,57877.0,0.13919239]
[1726211342079,0.102393,57878.0,57877.0,0.088391]
[1726211342391,0.102393,57878.0,57877.0,0.14018302]
[1726211342780,0.102393,57878.0,57877.0,0.11990021]
[1726211343181,0.102393,57878.0,57877.0,0.088391]
[1726211351990,0.016,57878.0,57877.0,0.174785]
[1726211352491,0.004,57884.0,57883.0,0.086385]
[1726211352791,0.135275,57890.0,57886.0,0.08638]
[1726211352994,0.135275,57890.0,57886.0,0.20638]
[1726211353886,0.0489,57890.0,57886.0,0.20638]
[1726211354090,0.3628,57887.0,57886.0,0.20738]
[1726211354480,0.3628,57887.0,57886.0,0.2382387]
[1726211354686,0.002,57887.0,57886.0,1.3564787]
[1726211354889,0.002,57887.0,57886.0,1.40817599]
[1726211355190,0.002,57887.0,57886.0,2.63452468]
[1726211355385,0.004,57894.0,57893.0,0.08637]
[1726211355693,0.3608,57895.0,57894.0,0.086369]
[1726211356086,0.3608,57895.0,57894.0,0.286369]
[1726211357188,0.3608,57895.0,57894.0,0.287369]
[1726211357879,0.3608,57895.0,57894.0,0.087369]
[1726211358291,0.3608,57895.0,57894.0,0.288369]
[1726211358596,0.3608,57895.0,57894.0,0.31876638]
[1726211359398,0.3608,57895.0,57894.0,0.11876638]
[1726211361696,0.452398,57901.0,57898.0,0.086362]
[1726211361894,0.447158,57901.0,57898.0,0.086362]
[1726211362892,0.086364,57898.0,57894.0,0.03039738]
[1726211363085,0.086364,57898.0,57890.0,0.56168]
[1726211363086,0.086364,57898.0,57897.0,0.086364]
[1726211363891,0.004,57905.0,57901.0,0.086358]
[1726211363892,0.086358,57902.0,57901.0,0.086358]
[1726211364083,0.447158,57902.0,57901.0,0.082358]
[1726211364889,0.3608,57902.0,57901.0,0.082358]
[1726211365394,0.3608,57902.0,57901.0,0.083358]
[1726211365993,0.3608,57902.0,57901.0,0.082358]
[1726211366298,0.3608,57902.0,57901.0,0.083358]
[1726211366896,0.3608,57902.0,57901.0,0.084358]
[1726211367307,0.3608,57902.0,57901.0,0.602478]
[1726211367786,0.5274,57914.0,57901.0,1.12012]
[1726211367787,0.3274,57914.0,57901.0,1.12012]
[1726211367990,0.3274,57914.0,57907.0,0.086349]
[1726211367991,0.32864,57914.0,57907.0,0.086349]
[1726211368196,0.3274,57914.0,57907.0,0.086349]
[1726211368508,0.41374,57914.0,57907.0,0.086349]
[1726211369306,0.08634,57914.0,57907.0,0.087349]
[1726211370006,0.086341,57913.0,57907.0,0.087349]
[1726211370706,0.086341,57913.0,57907.0,1.227349]
[1726211370999,0.3608,57915.0,57914.0,0.086339]
[1726211371902,0.447128,57921.0,57920.0,0.086329]
[1726211372603,0.086331,57920.0,57916.0,0.086335]
[1726211373193,0.086331,57920.0,57914.0,0.001]
[1726211373602,0.086331,57920.0,57918.0,0.086332]
[1726211374504,0.447128,57921.0,57920.0,0.08633]
[1726211376206,0.3608,57921.0,57920.0,0.08633]
[1726211376409,0.0559,57923.0,57922.0,0.086327]
[1726211377804,0.0559,57923.0,57922.0,0.087327]
[1726211378013,0.0559,57923.0,57922.0,0.088327]
[1726211381706,0.142225,57923.0,57922.0,0.088327]
[1726211384209,0.0559,57923.0,57922.0,0.088327]
[1726211385211,0.01,57923.0,57922.0,0.606247]
[1726211385710,0.01,57923.0,57922.0,0.088327]
[1726211385907,0.01,57923.0,57922.0,0.09677436]
[1726211387209,0.01,57923.0,57922.0,0.14547436]
[1726211387810,0.01,57923.0,57922.0,0.23180136]
[1726211388013,0.01,57923.0,57922.0,1.26339436]
[1726211389115,0.01,57923.0,57922.0,0.66339436]
[1726211389318,0.01,57923.0,57922.0,0.66139436]
[1726211389615,0.01,57923.0,57922.0,0.66339436]
[1726211390809,0.01,57923.0,57922.0,0.23180136]
[1726211391007,0.01,57923.0,57922.0,0.14547436]
[1726211391708,0.01,57923.0,57922.0,0.23180136]
[1726211392115,0.01,57923.0,57922.0,0.14547436]
[1726211393317,0.01,57923.0,57922.0,0.23180136]
[1726211393616,0.01,57923.0,57922.0,0.14547436]
[1726211393919,0.01,57923.0,57922.0,0.09677436]
[1726211394118,0.01,57923.0,57922.0,0.21677436]
[1726211395723,0.457125,57923.0,57922.0,0.088327]
[1726211396618,0.577125,57923.0,57922.0,0.088327]
[1726211396920,0.577125,57923.0,57922.0,0.002]
[1726211396921,0.457125,57923.0,57922.0,0.002]
[1726211399820,0.457125,57923.0,57922.0,0.088327]
[1726211400821,0.3708,57923.0,57922.0,0.088327]
[1726211401125,0.3708,57923.0,57922.0,0.13986406]
[1726211401424,0.3708,57923.0,57922.0,0.14000263]
[1726211401625,0.3708,57923.0,57922.0,0.088327]
[1726211401921,0.3708,57923.0,57922.0,0.14000597]
[1726211402320,0.3708,57923.0,57922.0,0.14001342]
[1726211402913,0.3708,57923.0,57922.0,0.088327]
[1726211403613,0.3708,57923.0,57922.0,0.14002219]
[1726211403916,0.01,57923.0,57922.0,0.14002219]
[1726211404113,0.01,57923.0,57922.0,0.088327]
[1726211413227,0.01,57923.0,57922.0,0.174654]
[1726211415824,0.01,57923.0,57922.0,0.24365093]
[1726211416630,0.01,57923.0,57922.0,0.174654]
[1726211416821,0.01,57923.0,57922.0,0.088327]
[1726211417022,0.01,57923.0,57922.0,0.07099984]
[1726211417224,1.214245,57923.0,57920.0,0.0517531]
[1726211417451,1.214245,57923.0,57918.0,0.08219105]
[1726211417452,0.12,57921.0,57918.0,0.08219105]
[1726211417630,0.12,57921.0,57918.0,0.03043795]
[1726211417631,0.447131,57919.0,57918.0,0.03043795]
[1726211417931,0.447131,57919.0,57918.0,0.0517531]
[1726211418233,0.447131,57919.0,57916.0,0.1380891]
[1726211418619,0.086334,57918.0,57916.0,0.13807739]
[1726211419433,0.086334,57918.0,57916.0,0.086336]
[1726211420535,0.0465,57917.0,57916.0,0.086336]
[1726211420836,0.0465,57917.0,57916.0,0.206336]
[1726211422237,0.0485,57917.0,57916.0,0.206336]
[1726211425523,0.4093,57917.0,57916.0,0.206336]
[1726211430736,0.495634,57917.0,57916.0,0.206336]
[1726211431742,0.495634,57917.0,57916.0,0.27528364]
[1726211432435,0.495634,57917.0,57916.0,0.086336]
[1726211434235,0.495634,57917.0,57916.0,0.1552825]
[1726211434544,0.495634,57917.0,57916.0,0.086336]
[1726211435743,0.495634,57917.0,57916.0,0.206336]
[1726211438333,0.495634,57917.0,57916.0,0.27529352]
[1726211441740,0.495634,57917.0,57916.0,0.15529352]
[1726211442336,0.495634,57917.0,57916.0,0.086336]
[1726211442542,0.495634,57917.0,57916.0,0.15532917]
[1726211442940,0.495634,57917.0,57916.0,0.086336]
[1726211443840,0.086336,57916.0,57915.0,0.03102014]
[1726211444041,0.086336,57916.0,57915.0,0.086336]
[1726211444754,0.086336,57916.0,57915.0,0.1553397]
[1726211444943,0.087336,57916.0,57915.0,0.1553397]
[1726211445353,0.087336,57916.0,57915.0,0.086336]
[1726211446440,0.087336,57916.0,57915.0,0.28302416]
[1726211446640,0.087336,57916.0,57915.0,0.17257165]
[1726211447456,0.087336,57916.0,57915.0,0.28302607]
[1726211447860,0.087336,57916.0,57915.0,0.28304582]
[1726211449341,0.087336,57916.0,57915.0,0.17257165]
[1726211450449,0.087336,57916.0,57915.0,0.086336]
[1726211450848,0.087336,57916.0,57915.0,0.17257165]
[1726211451448,0.087336,57916.0,57915.0,0.086336]
[1726211454762,0.001,57916.0,57915.0,0.086336]
[1726211460862,0.001,57916.0,57915.0,0.206336]
[1726211461454,0.001,57916.0,57915.0,0.292673]
[1726211461660,0.001,57916.0,57915.0,0.40303222]
[1726211461853,0.001,57916.0,57915.0,1.646515]
[1726211463548,0.001,57916.0,57915.0,1.54303222]
[1726211464465,0.001,57916.0,57915.0,1.90383222]
[1726211464763,0.001,57916.0,57915.0,1.54303222]
[1726211464953,0.001,57916.0,57915.0,1.90383222]
[1726211465752,0.001,57916.0,57915.0,1.90352267]
[1726211467859,0.001,57916.0,57915.0,2.00700545]
[1726211470359,0.001,57916.0,57915.0,1.90352267]
[1726211470754,0.001,57916.0,57915.0,1.90349627]
[1726211474474,0.001,57916.0,57915.0,3.10783327]
[1726211474764,0.01,57923.0,57922.0,0.206327]
[1726211474957,0.01,57923.0,57922.0,0.21510244]
[1726211475454,0.01,57923.0,57922.0,0.30142944]
[1726211476459,0.01,57923.0,57922.0,0.30242944]
[1726211476657,0.01,57923.0,57922.0,0.30342944]
[1726211477260,0.01,57923.0,57922.0,0.37238294]
[1726211477454,0.01,57923.0,57922.0,1.44342944]
[1726211478967,0.004,57930.0,57929.0,0.086316]
[1726211479164,0.0476,57932.0,57931.0,0.086313]
[1726211480363,0.004,57937.0,57931.0,0.086313]
[1726211480364,0.004,57937.0,57936.0,0.086306]
[1726211480555,0.004,57941.0,57940.0,0.0863]
[1726211480755,0.0462,57943.0,57941.0,0.086298]
[1726211481068,0.0462,57943.0,57942.0,0.086297]
[1726211483172,0.0462,57943.0,57942.0,0.087297]
[1726211483673,0.0462,57943.0,57942.0,0.207297]
[1726211483966,0.0462,57943.0,57942.0,0.208297]
[1726211497672,0.0462,57943.0,57942.0,0.294594]
[1726211498970,0.0462,57943.0,57942.0,0.088297]
[1726211500374,0.132496,57943.0,57942.0,0.088297]
[1726211509689,0.0462,57943.0,57942.0,0.088297]
[1726211510878,0.3608,57944.0,57943.0,0.172592]
[1726211511285,0.3608,57944.0,57943.0,1.312592]
[1726211511589,0.3608,57944.0,57943.0,1.226296]
[1726211512180,0.3608,57944.0,57943.0,0.087296]
[1726211513294,0.3608,57944.0,57943.0,0.088296]
[1726211517295,0.4808,57944.0,57943.0,0.088296]
[1726211517891,0.4808,57944.0,57943.0,0.13999902]
[1726211518097,0.4808,57944.0,57943.0,0.088296]
[1726211518888,0.567094,57944.0,57943.0,0.002]
[1726211520495,0.567094,57944.0,57940.0,0.05170302]
[1726211520496,1.684854,57944.0,57940.0,0.05170302]
[1726211520698,1.684854,57944.0,57932.0,0.09019959]
[1726211520699,0.086303,57938.0,57937.0,0.05170302]
[1726211521000,0.086303,57938.0,57937.0,0.05170768]
[1726211521001,0.206303,57938.0,57937.0,0.05170768]
[1726211521186,0.206303,57938.0,57928.0,0.210318]
[1726211521187,0.206303,57938.0,57935.0,0.06893035]
[1726211521390,0.206303,57938.0,57935.0,0.086307]
[1726211521391,0.4808,57936.0,57935.0,0.086307]
[1726211522505,0.3608,57936.0,57935.0,0.086307]
[1726211522800,0.4808,57936.0,57935.0,0.087307]
[1726211523598,0.4808,57936.0,57935.0,0.088307]
[1726211525289,0.3608,57936.0,57935.0,0.088307]
[1726211527694,0.086303,57938.0,57937.0,0.086304]
[1726211528294,0.3608,57939.0,57935.0,0.002]
[1726211528489,0.3608,57939.0,57938.0,0.206303]
[1726211529503,0.3608,57939.0,57938.0,0.292606]
[1726211529804,0.3608,57939.0,57938.0,0.206303]
[1726211531292,0.3608,57939.0,57938.0,0.207303]
[1726211531498,0.3618,57939.0,57938.0,0.208303]
[1726211533602,0.3618,57939.0,57938.0,0.68663309]
[1726211533603,0.001,57939.0,57938.0,0.68663309]
[1726211534104,0.001,57939.0,57938.0,0.7382812]
[1726211534493,0.001,57939.0,57938.0,0.68663309]
[1726211536101,0.001,57939.0,57938.0,0.75556344]
[1726211538107,0.001,57939.0,57938.0,0.68663309]
[1726211539407,0.001,57939.0,57938.0,1.82663309]
[1726211541510,0.001,57939.0,57938.0,1.46583309]
[1726211541718,0.001,57939.0,57938.0,1.82663309]
[1726211542410,0.001,57939.0,57938.0,1.91293609]
[1726211543010,0.004,57945.0,57944.0,0.172588]
[1726211543209,0.0461,57953.0,57944.0,0.206294]
[1726211543398,0.0487,57952.0,57947.0,0.12]
[1726211543599,0.1687,57952.0,57947.0,0.17162175]
[1726211543909,0.1687,57952.0,57950.0,0.086285]
[1726211545204,0.1687,57952.0,57951.0,0.086284]
[1726211546714,0.0487,57952.0,57951.0,0.086284]
[1726211546912,0.0487,57952.0,57951.0,0.087284]
[1726211547507,0.0487,57952.0,57951.0,0.088284]
[1726211549216,0.134982,57952.0,57951.0,0.088284]
[1726211556224,1.21321841,57952.0,57941.0,0.004]
[1726211556423,0.567099,57942.0,57941.0,0.086298]
[1726211556921,0.703699,57942.0,57941.0,0.086298]
[1726211557619,0.703699,57942.0,57941.0,0.087298]
[1726211558633,0.583699,57942.0,57941.0,0.088298]
[1726211558826,0.703699,57942.0,57941.0,0.088298]
[1726211559330,0.704699,57942.0,57941.0,0.088298]
[1726211559529,0.704697,57942.0,57941.0,0.088298]
[1726211564030,1.908754,57942.0,57941.0,0.002]
[1726211564237,0.086309,57934.0,57933.0,0.05162175]
[1726211564533,0.086309,57934.0,57931.0,0.090312]
[1726211564534,0.086312,57932.0,57931.0,0.086312]
[1726211564727,0.206312,57932.0,57931.0,0.086312]
[1726211564925,0.086313,57931.0,57930.0,0.05162175]
[1726211565126,0.086313,57931.0,57929.0,0.086316]
[1726211565127,0.086315,57930.0,57929.0,0.086316]
[1726211565323,0.206315,57930.0,57929.0,0.086316]
[1726211566137,0.206315,57930.0,57929.0,0.11765446]
[1726211566340,0.207315,57930.0,57929.0,0.11765446]
[1726211566638,0.207315,57930.0,57929.0,0.086316]
[1726211571436,0.207315,57930.0,57920.0,0.004]
[1726211571437,0.086328,57921.0,57920.0,0.004]
[1726211571629,0.086328,57921.0,57919.0,0.11778005]
[1726211571630,0.12,57921.0,57919.0,0.11778005]
[1726211572526,0.08633,57920.0,57919.0,0.11778005]
[1726211573930,0.20633,57920.0,57919.0,0.11778005]
[1726211574128,0.1669,57920.0,57914.0,0.05162175]
[1726211574330,0.086337,57915.0,57914.0,0.086338]
[1726211574535,0.086337,57915.0,57907.0,0.004]
[1726211574536,0.08634,57913.0,57912.0,0.03170995]
[1726211574734,0.12,57913.0,57908.0,0.086347]
[1726211574935,0.086336,57916.0,57908.0,0.086347]
[1726211574936,0.12,57909.0,57908.0,0.086347]
[1726211575331,0.3608,57910.0,57908.0,0.086347]
[1726211575527,0.12,57909.0,57908.0,0.086347]
[1726211575836,0.12,57909.0,57908.0,0.094347]